[Event "Paul Keres Memorial Festival 2022"]
[Site "Pärnu, Estonia Resort Hotel & Spa"]
[Date "2022.07.21"]
[Round "7.4"]
[White "Olde, Margareth"]
[Black "Protassov, Vlad"]
[Result "0-1"]
[TimeControl "60 min for 30 moves + 30 min until game end, from first move every move 30 sec time increment"]
[WhiteTitle "WIM"]
[WhiteFideId "4503082"]
[BlackFideId "4507010"]
[WhiteElo "2235"]
[BlackElo "1824"]

1. d4 {[%clk 01:00:58]} {[%emt 00:00:02]} Nf6 {[%clk 01:00:52]} {[%emt
00:00:07]} 2. c4 {[%clk 01:01:22]} {[%emt 00:00:06]} e6 {[%clk 01:01:16]}
{[%emt 00:00:06]} 3. Nf3 {[%clk 01:01:48]} {[%emt 00:00:05]} d5 {[%clk
01:01:08]} {[%emt 00:00:38]} 4. g3 {[%clk 01:02:14]} {[%emt 00:00:05]} dxc4
{[%clk 01:01:30]} {[%emt 00:00:08]} 5. Bg2 {[%clk 01:02:39]} {[%emt 00:00:04]}
Bb4+ {[%clk 01:01:50]} {[%emt 00:00:10]} 6. Bd2 {[%clk 01:02:46]} {[%emt
00:00:24]} a5 {[%clk 01:01:45]} {[%emt 00:00:34]} 7. O-O {[%clk 01:01:01]}
{[%emt 00:02:15]} Bxd2 {[%clk 01:01:25]} {[%emt 00:00:51]} 8. Nbxd2 {[%clk
01:01:15]} {[%emt 00:00:16]} b5 {[%clk 01:00:30]} {[%emt 00:01:24]} 9. a4
{[%clk 00:56:46]} {[%emt 00:04:59]} c6 {[%clk 01:00:42]} {[%emt 00:00:17]} 10.
Ne5 {[%clk 00:56:21]} {[%emt 00:00:56]} Nd5 {[%clk 01:00:34]} {[%emt 00:00:38]}
11. Ne4 {[%clk 00:54:26]} {[%emt 00:02:25]} O-O {[%clk 00:58:46]} {[%emt
00:02:18]} 12. b3 {[%clk 00:46:55]} {[%emt 00:08:01]} f5 {[%clk 00:41:48]}
{[%emt 00:17:28]} 13. Nc5 {[%clk 00:41:03]} {[%emt 00:06:23]} Nc3 {[%clk
00:41:33]} {[%emt 00:00:44]} 14. Qd2 {[%clk 00:30:04]} {[%emt 00:11:29]} Qxd4
{[%clk 00:41:47]} {[%emt 00:00:16]} 15. Qxd4 {[%clk 00:30:32]} {[%emt
00:00:03]} Nxe2+ {[%clk 00:42:09]} {[%emt 00:00:08]} 16. Kh1 {[%clk 00:31:00]}
{[%emt 00:00:01]} Nxd4 {[%clk 00:42:30]} {[%emt 00:00:09]} 17. bxc4 {[%clk
00:26:16]} {[%emt 00:05:15]} bxc4 {[%clk 00:39:45]} {[%emt 00:03:15]} 18. Nxc4
{[%clk 00:23:41]} {[%emt 00:03:04]} Na6 {[%clk 00:28:15]} {[%emt 00:11:59]} 19.
Nb6 {[%clk 00:17:49]} {[%emt 00:06:22]} Nxc5 {[%clk 00:18:03]} {[%emt
00:10:43]} 20. Nxa8 {[%clk 00:18:15]} {[%emt 00:00:05]} Ba6 {[%clk 00:18:28]}
{[%emt 00:00:04]} 21. Rfd1 {[%clk 00:15:03]} {[%emt 00:03:42]} Ndb3 {[%clk
00:17:43]} {[%emt 00:01:15]} 22. Nc7 {[%clk 00:12:53]} {[%emt 00:02:41]} Nxa1
{[%clk 00:18:02]} {[%emt 00:00:10]} 23. Rxa1 {[%clk 00:11:37]} {[%emt
00:01:46]} Rc8 {[%clk 00:17:09]} {[%emt 00:01:22]} 24. Rc1 {[%clk 00:11:26]}
{[%emt 00:00:41]} Nd3 {[%clk 00:05:06]} {[%emt 00:12:32]} 25. Rxc6 {[%clk
00:11:22]} {[%emt 00:00:34]} Bb7 {[%clk 00:05:11]} {[%emt 00:00:24]} 26. Rd6
{[%clk 00:04:11]} {[%emt 00:07:43]} Rxc7 {[%clk 00:01:27]} {[%emt 00:04:14]} 27.
Bxb7 {[%clk 00:04:31]} {[%emt 00:00:10]} Nxf2+ {[%clk 00:01:52]} {[%emt
00:00:05]} 28. Kg2 {[%clk 00:04:41]} {[%emt 00:00:20]} Rxb7 {[%clk 00:00:54]}
{[%emt 00:01:28]} 29. Kxf2 {[%clk 00:05:06]} {[%emt 00:00:05]} Rb4 {[%clk
00:01:00]} {[%emt 00:00:23]} 30. Rxe6 {[%clk 00:35:00]} {[%emt 00:00:38]} Rxa4
{[%clk 00:31:23]} {[%emt 00:00:07]} 31. Re5 {[%clk 00:30:28]} {[%emt 00:05:01]}
g6 {[%clk 00:30:35]} {[%emt 00:01:17]} 32. Re7 {[%clk 00:30:13]} {[%emt
00:00:45]} Ra2+ {[%clk 00:29:33]} {[%emt 00:01:33]} 33. Kf3 {[%clk 00:25:18]}
{[%emt 00:05:26]} Rxh2 {[%clk 00:29:28]} {[%emt 00:00:35]} 34. Ra7 {[%clk
00:25:45]} {[%emt 00:00:02]} h6 {[%clk 00:21:05]} {[%emt 00:08:52]} 35. Rxa5
{[%clk 00:14:15]} {[%emt 00:12:01]} Kf7 {[%clk 00:21:08]} {[%emt 00:00:25]} 36.
Ra6 {[%clk 00:14:12]} {[%emt 00:00:35]} Rd2 {[%clk 00:21:12]} {[%emt 00:00:25]}
37. Ra7+ {[%clk 00:10:14]} {[%emt 00:04:29]} Kf6 {[%clk 00:21:19]} {[%emt
00:00:21]} 38. Ra6+ {[%clk 00:10:22]} {[%emt 00:00:24]} Kg5 {[%clk 00:21:38]}
{[%emt 00:00:10]} 39. Ra4 {[%clk 00:10:35]} {[%emt 00:00:16]} Rd3+ {[%clk
00:21:43]} {[%emt 00:00:26]} 40. Kf2 {[%clk 00:10:57]} {[%emt 00:00:04]} Rd5
{[%clk 00:19:56]} {[%emt 00:02:20]} 41. Kf3 {[%clk 00:11:02]} {[%emt 00:00:26]}
Re5 {[%clk 00:19:45]} {[%emt 00:00:39]} 42. Ra1 {[%clk 00:09:15]} {[%emt
00:02:15]} Re4 {[%clk 00:19:56]} {[%emt 00:00:22]} 43. Ra6 {[%clk 00:09:29]}
{[%emt 00:00:17]} h5 {[%clk 00:19:44]} {[%emt 00:00:40]} 44. Rb6 {[%clk
00:08:48]} {[%emt 00:01:13]} h4 {[%clk 00:20:01]} {[%emt 00:00:12]} 45. gxh4+
{[%clk 00:09:15]} {[%emt 00:00:04]} Rxh4 {[%clk 00:20:22]} {[%emt 00:00:08]} 46.
Kg3 {[%clk 00:09:36]} {[%emt 00:00:09]} Rd4 {[%clk 00:20:10]} {[%emt 00:00:42]}
47. Rb3 {[%clk 00:09:59]} {[%emt 00:00:08]} Rd5 {[%clk 00:19:24]} {[%emt
00:01:15]} 48. Rf3 {[%clk 00:09:06]} {[%emt 00:01:23]} f4+ {[%clk 00:10:48]}
{[%emt 00:09:05]} 49. Kh3 {[%clk 00:09:31]} {[%emt 00:00:06]} Kf5 {[%clk
00:10:40]} {[%emt 00:00:37]} 50. Ra3 {[%clk 00:09:14]} {[%emt 00:00:48]} g5
{[%clk 00:10:41]} {[%emt 00:00:28]} 51. Ra8 {[%clk 00:09:34]} {[%emt 00:00:11]}
Rd3+ {[%clk 00:11:02]} {[%emt 00:00:08]} 52. Kg2 {[%clk 00:10:00]} {[%emt
00:00:05]} Rd2+ {[%clk 00:11:01]} {[%emt 00:00:31]} 53. Kf1 {[%clk 00:10:21]}
{[%emt 00:00:10]} Kg4 {[%clk 00:10:37]} {[%emt 00:00:52]} 54. Ra5 {[%clk
00:10:37]} {[%emt 00:00:15]} Kf3 {[%clk 00:08:28]} {[%emt 00:02:39]} 55. Ke1
{[%clk 00:09:51]} {[%emt 00:01:16]} Re2+ {[%clk 00:08:49]} {[%emt 00:00:08]} 56.
Kf1 {[%clk 00:10:04]} {[%emt 00:00:15]} g4 {[%clk 00:09:10]} {[%emt 00:00:10]}
57. Ra4 {[%clk 00:10:07]} {[%emt 00:00:27]} Re3 {[%clk 00:08:34]} {[%emt
00:01:06]} 58. Ra2 {[%clk 00:10:24]} {[%emt 00:00:14]} g3 {[%clk 00:08:41]}
{[%emt 00:00:22]} 59. Rf2+ {[%clk 00:10:51]} {[%emt 00:00:04]} Kg4 {[%clk
00:09:00]} {[%emt 00:00:10]} 60. Ra2 {[%clk 00:11:18]} {[%emt 00:00:05]} Re4
{[%clk 00:08:38]} {[%emt 00:00:52]} 61. Ra8 {[%clk 00:10:51]} {[%emt 00:00:56]}
f3 {[%clk 00:08:42]} {[%emt 00:00:25]} 62. Rg8+ {[%clk 00:11:16]} {[%emt
00:00:06]} Kf4 {[%clk 00:09:04]} {[%emt 00:00:08]} 63. Rf8+ {[%clk 00:11:17]}
{[%emt 00:00:30]} Ke3 {[%clk 00:09:28]} {[%emt 00:00:05]} 64. Kg1 {[%clk
00:11:41]} {[%emt 00:00:06]} Ke2 {[%clk 00:09:35]} {[%emt 00:00:21]} 65. Rf7
{[%clk 00:11:59]} {[%emt 00:00:13]} Rc4 {[%clk 00:08:43]} {[%emt 00:01:21]} 66.
Re7+ {[%clk 00:12:26]} {[%emt 00:00:04]} Kd3 {[%clk 00:08:58]} {[%emt
00:00:13]} 67. Rd7+ {[%clk 00:12:53]} {[%emt 00:00:04]} Ke4 {[%clk 00:09:09]}
{[%emt 00:00:16]} 68. Re7+ {[%clk 00:12:55]} {[%emt 00:00:30]} Kf4 {[%clk
00:09:00]} {[%emt 00:00:39]} 69. Rf7+ {[%clk 00:13:10]} {[%emt 00:00:16]} Kg4
{[%clk 00:09:19]} {[%emt 00:00:10]} 70. Rg7+ {[%clk 00:13:31]} {[%emt
00:00:11]} Kh3 {[%clk 00:09:43]} {[%emt 00:00:06]} 71. Rh7+ {[%clk 00:13:55]}
{[%emt 00:00:06]} Rh4 {[%clk 00:10:05]} {[%emt 00:00:07]} 72. Rg7 {[%clk
00:14:10]} {[%emt 00:00:16]} Rh5 {[%clk 00:04:52]} {[%emt 00:05:42]} 73. Rg8
{[%clk 00:13:52]} {[%emt 00:00:49]} Rd5 {[%clk 00:02:18]} {[%emt 00:03:03]} 74.
Rh8+ {[%clk 00:14:08]} {[%emt 00:00:15]} Kg4 {[%clk 00:02:43]} {[%emt
00:00:05]} 75. Rg8+ {[%clk 00:14:30]} {[%emt 00:00:09]} Kf4 {[%clk 00:03:01]}
{[%emt 00:00:11]} 76. Rf8+ {[%clk 00:14:57]} {[%emt 00:00:03]} Ke4 {[%clk
00:03:04]} {[%emt 00:00:26]} 77. Re8+ {[%clk 00:15:19]} {[%emt 00:00:09]} Re5
{[%clk 00:02:20]} {[%emt 00:01:14]} 78. Rg8 {[%clk 00:11:28]} {[%emt 00:04:21]}
Kf4 {[%clk 00:02:39]} {[%emt 00:00:11]} 79. Rf8+ {[%clk 00:11:33]} {[%emt
00:00:25]} Ke3 {[%clk 00:02:49]} {[%emt 00:00:19]} 80. Kf1 {[%clk 00:11:50]}
{[%emt 00:00:14]} g2+ {[%clk 00:01:35]} {[%emt 00:01:44]} 81. Kg1 {[%clk
00:12:16]} {[%emt 00:00:04]} Ke2 {[%clk 00:01:36]} {[%emt 00:00:29]} 82. Rf7
{[%clk 00:12:35]} {[%emt 00:00:11]} Re4 {[%clk 00:01:28]} {[%emt 00:00:38]} 83.
Rf8 {[%clk 00:12:56]} {[%emt 00:00:10]} Ke3 {[%clk 00:00:45]} {[%emt 00:01:13]}
84. Rf7 {[%clk 00:13:18]} {[%emt 00:00:08]} Rd4 {[%clk 00:00:55]} {[%emt
00:00:20]} 85. Re7+ {[%clk 00:13:40]} {[%emt 00:00:08]} Kf4 {[%clk 00:01:08]}
{[%emt 00:00:16]} 86. Rf7+ {[%clk 00:13:51]} {[%emt 00:00:18]} Kg4 {[%clk
00:01:23]} {[%emt 00:00:15]} 87. Rg7+ {[%clk 00:14:15]} {[%emt 00:00:06]} Kh5
{[%clk 00:01:34]} {[%emt 00:00:14]} 88. Kf2 {[%clk 00:12:49]} {[%emt 00:02:03]}
Rd1 {[%clk 00:01:49]} {[%emt 00:00:14]} 0-1

[Event "Paul Keres Memorial Festival 2022"]
[Site "Pärnu, Estonia Resort Hotel & Spa"]
[Date "2022.07.21"]
[Round "7.5"]
[White "Chukavin, Kirill"]
[Black "Agrest, Simon"]
[Result "1-0"]
[TimeControl "60 min for 30 moves + 30 min until game end, from first move every move 30 sec time increment"]
[WhiteTitle "FM"]
[WhiteFideId "4503023"]
[WhiteElo "2418"]
[BlackElo "1802"]

1. e4 {[%clk 01:00:57]} {[%emt 00:00:04]} e5 {[%clk 00:56:48]} {[%emt
00:04:04]} 2. Nf3 {[%clk 01:00:50]} {[%emt 00:00:43]} Nc6 {[%clk 00:57:05]}
{[%emt 00:00:14]} 3. Nc3 {[%clk 01:00:52]} {[%emt 00:00:27]} Nf6 {[%clk
00:57:16]} {[%emt 00:00:19]} 4. Be2 {[%clk 01:01:14]} {[%emt 00:00:08]} Bc5
{[%clk 00:56:14]} {[%emt 00:01:32]} 5. Nxe5 {[%clk 01:01:36]} {[%emt 00:00:08]}
Nxe5 {[%clk 00:56:36]} {[%emt 00:00:08]} 6. d4 {[%clk 01:02:01]} {[%emt
00:00:05]} Bd6 {[%clk 00:56:58]} {[%emt 00:00:08]} 7. dxe5 {[%clk 01:02:25]}
{[%emt 00:00:06]} Bxe5 {[%clk 00:57:17]} {[%emt 00:00:11]} 8. Nb5 {[%clk
01:02:50]} {[%emt 00:00:05]} d5 {[%clk 00:49:05]} {[%emt 00:08:42]} 9. f4
{[%clk 00:35:33]} {[%emt 00:27:46]} Nxe4 {[%clk 00:48:21]} {[%emt 00:01:14]} 10.
fxe5 {[%clk 00:35:56]} {[%emt 00:00:07]} Qh4+ {[%clk 00:47:49]} {[%emt
00:01:02]} 11. g3 {[%clk 00:36:21]} {[%emt 00:00:05]} Nxg3 {[%clk 00:48:02]}
{[%emt 00:00:17]} 12. Nxc7+ {[%clk 00:29:20]} {[%emt 00:07:31]} Kf8 {[%clk
00:41:08]} {[%emt 00:07:24]} 13. Bg5 {[%clk 00:29:14]} {[%emt 00:00:36]} Qxg5
{[%clk 00:41:00]} {[%emt 00:00:38]} 14. Rg1 {[%clk 00:29:27]} {[%emt 00:00:16]}
Qxe5 {[%clk 00:40:02]} {[%emt 00:01:29]} 15. Nxa8 {[%clk 00:29:23]} {[%emt
00:00:34]} Ne4 {[%clk 00:39:41]} {[%emt 00:00:50]} 16. c3 {[%clk 00:28:57]}
{[%emt 00:00:57]} Qxh2 {[%clk 00:38:54]} {[%emt 00:01:17]} 17. Qd4 {[%clk
00:28:58]} {[%emt 00:00:29]} Be6 {[%clk 00:34:15]} {[%emt 00:05:09]} 18. Nc7
{[%clk 00:26:44]} {[%emt 00:02:44]} Qxc7 {[%clk 00:32:48]} {[%emt 00:01:57]} 19.
Qxg7+ {[%clk 00:26:45]} {[%emt 00:00:29]} Ke7 {[%clk 00:33:07]} {[%emt
00:00:12]} 20. Qxh8 {[%clk 00:27:04]} {[%emt 00:00:10]} Qb6 {[%clk 00:32:17]}
{[%emt 00:01:19]} 21. Qd4 {[%clk 00:27:14]} {[%emt 00:00:20]} Qxb2 {[%clk
00:32:21]} {[%emt 00:00:26]} 22. Qb4+ {[%clk 00:27:34]} {[%emt 00:00:10]} Qxb4
{[%clk 00:32:35]} {[%emt 00:00:17]} 23. cxb4 {[%clk 00:27:59]} {[%emt
00:00:05]} 1-0

[Event "Paul Keres Memorial Festival 2022"]
[Site "Pärnu, Estonia Resort Hotel & Spa"]
[Date "2022.07.21"]
[Round "7.6"]
[White "Rondo, Mikko"]
[Black "Raag, Ardi"]
[Result "1/2-1/2"]
[TimeControl "60 min for 30 moves + 30 min until game end, from first move every move 30 sec time increment"]
[WhiteFideId "4509633"]
[BlackFideId "4509269"]
[WhiteElo "1579"]
[BlackElo "1971"]

1. e4 {[%clk 00:59:06]} {[%emt 00:01:52]} e5 {[%clk 01:00:54]} {[%emt
00:00:06]} 2. Nf3 {[%clk 00:59:31]} {[%emt 00:00:06]} Nc6 {[%clk 01:01:20]}
{[%emt 00:00:05]} 3. Nc3 {[%clk 00:55:39]} {[%emt 00:04:21]} Nf6 {[%clk
01:01:43]} {[%emt 00:00:06]} 4. Bc4 {[%clk 00:55:45]} {[%emt 00:00:24]} Be7
{[%clk 01:01:19]} {[%emt 00:00:54]} 5. a3 {[%clk 00:55:45]} {[%emt 00:00:31]}
O-O {[%clk 01:00:12]} {[%emt 00:01:37]} 6. d3 {[%clk 00:55:29]} {[%emt
00:00:47]} d6 {[%clk 00:58:34]} {[%emt 00:02:08]} 7. h3 {[%clk 00:55:23]}
{[%emt 00:00:35]} Be6 {[%clk 00:56:02]} {[%emt 00:03:02]} 8. Bg5 {[%clk
00:54:11]} {[%emt 00:01:42]} Bxc4 {[%clk 00:53:29]} {[%emt 00:03:03]} 9. Bxf6
{[%clk 00:53:55]} {[%emt 00:00:46]} Be6 {[%clk 00:53:03]} {[%emt 00:00:56]} 10.
Bxe7 {[%clk 00:54:19]} {[%emt 00:00:05]} Qxe7 {[%clk 00:52:26]} {[%emt
00:01:07]} 11. O-O {[%clk 00:54:31]} {[%emt 00:00:18]} f5 {[%clk 00:50:43]}
{[%emt 00:02:13]} 12. Nd5 {[%clk 00:47:55]} {[%emt 00:07:06]} Qd7 {[%clk
00:48:07]} {[%emt 00:03:06]} 13. Ng5 {[%clk 00:46:22]} {[%emt 00:02:03]} Bxd5
{[%clk 00:48:17]} {[%emt 00:00:21]} 14. exd5 {[%clk 00:45:57]} {[%emt
00:00:55]} Ne7 {[%clk 00:48:35]} {[%emt 00:00:11]} 15. c4 {[%clk 00:45:16]}
{[%emt 00:01:11]} c6 {[%clk 00:45:32]} {[%emt 00:03:34]} 16. dxc6 {[%clk
00:43:50]} {[%emt 00:01:56]} bxc6 {[%clk 00:42:53]} {[%emt 00:03:09]} 17. Nf3
{[%clk 00:42:23]} {[%emt 00:01:57]} e4 {[%clk 00:38:08]} {[%emt 00:05:15]} 18.
Nd4 {[%clk 00:41:05]} {[%emt 00:01:48]} d5 {[%clk 00:36:55]} {[%emt 00:01:43]}
19. cxd5 {[%clk 00:38:16]} {[%emt 00:03:18]} cxd5 {[%clk 00:36:22]} {[%emt
00:01:03]} 20. dxe4 {[%clk 00:38:31]} {[%emt 00:00:15]} fxe4 {[%clk 00:35:22]}
{[%emt 00:01:31]} 21. Qd2 {[%clk 00:38:12]} {[%emt 00:00:49]} Ng6 {[%clk
00:30:36]} {[%emt 00:05:16]} 22. f3 {[%clk 00:34:18]} {[%emt 00:04:24]} Rad8
{[%clk 00:20:53]} {[%emt 00:10:13]} 23. Rae1 {[%clk 00:33:01]} {[%emt
00:01:47]} Rfe8 {[%clk 00:20:19]} {[%emt 00:01:04]} 24. Nc2 {[%clk 00:30:54]}
{[%emt 00:02:36]} Qc7 {[%clk 00:18:48]} {[%emt 00:02:01]} 25. Qc3 {[%clk
00:26:51]} {[%emt 00:04:33]} Qb6+ {[%clk 00:09:03]} {[%emt 00:10:16]} 26. Qd4
{[%clk 00:26:22]} {[%emt 00:00:59]} Rc8 {[%clk 00:08:27]} {[%emt 00:01:06]} 27.
Qxb6 {[%clk 00:26:33]} {[%emt 00:00:19]} axb6 {[%clk 00:08:53]} {[%emt
00:00:04]} 28. Nb4 {[%clk 00:26:22]} {[%emt 00:00:40]} e3 {[%clk 00:06:11]}
{[%emt 00:03:13]} 29. Nxd5 {[%clk 00:24:53]} {[%emt 00:01:59]} e2 {[%clk
00:06:34]} {[%emt 00:00:07]} 30. Rf2 {[%clk 00:55:18]} {[%emt 00:00:05]} Rc2
{[%clk 00:36:47]} {[%emt 00:00:17]} 31. f4 {[%clk 00:53:16]} {[%emt 00:02:32]}
Rxb2 {[%clk 00:34:34]} {[%emt 00:02:43]} 32. f5 {[%clk 00:50:08]} {[%emt
00:03:37]} Rd8 {[%clk 00:25:53]} {[%emt 00:09:11]} 33. fxg6 {[%clk 00:45:17]}
{[%emt 00:05:21]} Rxd5 {[%clk 00:26:18]} {[%emt 00:00:06]} 34. gxh7+ {[%clk
00:45:41]} {[%emt 00:00:06]} Kxh7 {[%clk 00:26:45]} {[%emt 00:00:03]} 35. Rexe2
{[%clk 00:46:03]} {[%emt 00:00:08]} Rb3 {[%clk 00:27:06]} {[%emt 00:00:09]} 36.
Rb2 {[%clk 00:46:22]} {[%emt 00:00:11]} Rdb5 {[%clk 00:26:38]} {[%emt
00:00:57]} 1/2-1/2

[Event "Paul Keres Memorial Festival 2022"]
[Site "Pärnu, Estonia Resort Hotel & Spa"]
[Date "2022.07.21"]
[Round "7.7"]
[White "Paikens, Reinis"]
[Black "Hannson, Markus"]
[Result "1/2-1/2"]
[TimeControl "60 min for 30 moves + 30 min until game end, from first move every move 30 sec time increment"]
[WhiteFideId "11624078"]
[BlackFideId "4505620"]
[WhiteElo "1567"]
[BlackElo "1745"]

1. c4 {[%clk 01:00:57]} {[%emt 00:00:02]} e5 {[%clk 01:00:45]} {[%emt
00:00:14]} 2. Nc3 {[%clk 01:01:23]} {[%emt 00:00:05]} Nf6 {[%clk 01:01:06]}
{[%emt 00:00:09]} 3. g3 {[%clk 01:01:46]} {[%emt 00:00:07]} Bb4 {[%clk
01:01:30]} {[%emt 00:00:05]} 4. Bg2 {[%clk 01:02:09]} {[%emt 00:00:08]} O-O
{[%clk 01:01:52]} {[%emt 00:00:08]} 5. Nf3 {[%clk 01:02:34]} {[%emt 00:00:05]}
Bxc3 {[%clk 01:01:41]} {[%emt 00:00:41]} 6. bxc3 {[%clk 01:02:30]} {[%emt
00:00:34]} Re8 {[%clk 00:55:55]} {[%emt 00:06:15]} 7. O-O {[%clk 01:02:19]}
{[%emt 00:00:41]} d6 {[%clk 00:52:41]} {[%emt 00:03:44]} 8. Rb1 {[%clk
01:02:04]} {[%emt 00:00:45]} c6 {[%clk 00:52:28]} {[%emt 00:00:44]} 9. d3
{[%clk 01:02:10]} {[%emt 00:00:23]} Nbd7 {[%clk 00:50:43]} {[%emt 00:02:15]} 10.
e4 {[%clk 01:01:38]} {[%emt 00:01:02]} Qa5 {[%clk 00:46:13]} {[%emt 00:04:59]}
11. Qc2 {[%clk 01:00:31]} {[%emt 00:01:38]} d5 {[%clk 00:44:20]} {[%emt
00:02:23]} 12. cxd5 {[%clk 00:58:27]} {[%emt 00:02:34]} cxd5 {[%clk 00:44:36]}
{[%emt 00:00:15]} 13. exd5 {[%clk 00:52:44]} {[%emt 00:06:13]} Nxd5 {[%clk
00:44:16]} {[%emt 00:00:50]} 14. Bd2 {[%clk 00:52:36]} {[%emt 00:00:38]} Qa6
{[%clk 00:36:14]} {[%emt 00:08:28]} 15. Rfe1 {[%clk 00:50:24]} {[%emt
00:02:44]} N5f6 {[%clk 00:31:36]} {[%emt 00:05:07]} 16. d4 {[%clk 00:46:23]}
{[%emt 00:04:33]} exd4 {[%clk 00:28:09]} {[%emt 00:03:58]} 17. Rxe8+ {[%clk
00:45:18]} {[%emt 00:01:35]} Nxe8 {[%clk 00:28:34]} {[%emt 00:00:05]} 18. cxd4
{[%clk 00:45:14]} {[%emt 00:00:34]} Qg6 {[%clk 00:22:15]} {[%emt 00:06:49]} 19.
Qb3 {[%clk 00:42:40]} {[%emt 00:03:04]} Nb6 {[%clk 00:21:19]} {[%emt 00:01:25]}
20. d5 {[%clk 00:39:56]} {[%emt 00:03:15]} Nd6 {[%clk 00:15:24]} {[%emt
00:06:25]} 21. Re1 {[%clk 00:37:47]} {[%emt 00:02:39]} Bd7 {[%clk 00:10:57]}
{[%emt 00:04:57]} 22. h4 {[%clk 00:28:50]} {[%emt 00:09:27]} Ba4 {[%clk
00:06:14]} {[%emt 00:05:14]} 23. Qb4 {[%clk 00:27:58]} {[%emt 00:01:22]} Ndc4
{[%clk 00:05:43]} {[%emt 00:01:00]} 24. Bf4 {[%clk 00:22:25]} {[%emt 00:06:03]}
a5 {[%clk 00:05:49]} {[%emt 00:00:24]} 25. Qe7 {[%clk 00:22:22]} {[%emt
00:00:32]} Nxd5 {[%clk 00:04:31]} {[%emt 00:01:50]} 26. Qxb7 {[%clk 00:21:18]}
{[%emt 00:01:34]} Qc6 {[%clk 00:04:48]} {[%emt 00:00:13]} 27. Qxc6 {[%clk
00:14:41]} {[%emt 00:07:07]} Bxc6 {[%clk 00:05:16]} {[%emt 00:00:02]} 28. Nd4
{[%clk 00:12:49]} {[%emt 00:02:22]} Bb7 {[%clk 00:03:28]} {[%emt 00:02:18]} 29.
Rb1 {[%clk 00:12:38]} {[%emt 00:00:40]} Nxf4 {[%clk 00:02:40]} {[%emt
00:01:18]} 30. Bxb7 {[%clk 00:41:43]} {[%emt 00:01:25]} Rd8 {[%clk 00:32:43]}
{[%emt 00:00:27]} 31. Nc6 {[%clk 00:36:22]} {[%emt 00:05:51]} Ne2+ {[%clk
00:32:51]} {[%emt 00:00:22]} 32. Kg2 {[%clk 00:36:19]} {[%emt 00:00:32]} Re8
{[%clk 00:27:08]} {[%emt 00:06:14]} 33. Ba6 {[%clk 00:35:49]} {[%emt 00:01:01]}
Nd6 {[%clk 00:27:33]} {[%emt 00:00:05]} 34. Rd1 {[%clk 00:35:06]} {[%emt
00:01:13]} Ne4 {[%clk 00:24:56]} {[%emt 00:03:07]} 35. Kf3 {[%emt 00:07:39]}
N4c3 36. Rd2 Nc1 {[%emt 00:00:08]} 37. Kg2 {[%emt 00:00:12]} N1e2 {[%emt
00:00:01]} 38. Rd1 {[%emt 00:00:02]} Ne4 39. Bxe2 {[%emt 00:00:04]} Nc3 40.
Nxa5 {[%emt 00:00:02]} Nxd1 {[%emt 00:00:04]} 41. Bxd1 {[%emt 00:00:01]} Ra8
1/2-1/2

[Event "Paul Keres Memorial Festival 2022"]
[Site "Pärnu, Estonia Resort Hotel & Spa"]
[Date "2022.07.21"]
[Round "7.8"]
[White "Olde, Grete"]
[Black "Kokk, Karl Mattias"]
[Result "1/2-1/2"]
[TimeControl "60 min for 30 moves + 30 min until game end, from first move every move 30 sec time increment"]
[WhiteTitle "WCM"]
[WhiteFideId "4503104"]
[BlackFideId "4510674"]
[WhiteElo "1904"]
[BlackElo "1459"]

1. e4 {[%clk 01:00:57]} {[%emt 00:00:04]} c5 {[%clk 01:00:43]} {[%emt
00:00:15]} 2. Nc3 {[%clk 01:01:11]} {[%emt 00:00:17]} d6 {[%clk 01:00:42]}
{[%emt 00:00:30]} 3. g3 {[%clk 01:01:26]} {[%emt 00:00:15]} Nc6 {[%clk
01:00:38]} {[%emt 00:00:34]} 4. Bg2 {[%clk 01:01:39]} {[%emt 00:00:16]} g6
{[%clk 01:00:49]} {[%emt 00:00:19]} 5. d3 {[%clk 01:01:20]} {[%emt 00:00:49]}
Bg7 {[%clk 01:00:43]} {[%emt 00:00:36]} 6. f4 {[%clk 01:01:36]} {[%emt
00:00:14]} e6 {[%clk 01:00:12]} {[%emt 00:01:02]} 7. Nf3 {[%clk 01:01:23]}
{[%emt 00:00:43]} Nge7 {[%clk 01:00:08]} {[%emt 00:00:34]} 8. O-O {[%clk
01:01:25]} {[%emt 00:00:28]} O-O {[%clk 01:00:00]} {[%emt 00:00:37]} 9. Be3
{[%clk 01:01:28]} {[%emt 00:00:28]} Rb8 {[%clk 00:58:41]} {[%emt 00:01:49]} 10.
d4 {[%clk 00:57:32]} {[%emt 00:04:25]} cxd4 {[%clk 00:57:03]} {[%emt 00:02:08]}
11. Nxd4 {[%clk 00:57:02]} {[%emt 00:01:00]} d5 {[%clk 00:52:49]} {[%emt
00:04:45]} 12. exd5 {[%clk 00:46:16]} {[%emt 00:11:16]} Nxd5 {[%clk 00:49:52]}
{[%emt 00:03:26]} 13. Nxd5 {[%clk 00:40:27]} {[%emt 00:06:20]} exd5 {[%clk
00:49:26]} {[%emt 00:00:56]} 14. c3 {[%clk 00:40:03]} {[%emt 00:00:54]} Re8
{[%clk 00:47:30]} {[%emt 00:02:27]} 15. Bf2 {[%clk 00:38:28]} {[%emt 00:02:04]}
Nxd4 {[%clk 00:39:03]} {[%emt 00:08:57]} 16. Bxd4 {[%clk 00:37:13]} {[%emt
00:01:45]} Bxd4+ {[%clk 00:32:14]} {[%emt 00:07:20]} 17. Qxd4 {[%clk 00:37:03]}
{[%emt 00:00:40]} Re2 {[%clk 00:31:23]} {[%emt 00:01:21]} 18. Bxd5 {[%clk
00:32:24]} {[%emt 00:05:08]} Bh3 {[%clk 00:28:51]} {[%emt 00:03:03]} 19. Rf2
{[%clk 00:26:22]} {[%emt 00:06:31]} Qe7 {[%clk 00:26:27]} {[%emt 00:02:54]} 20.
Rxe2 {[%clk 00:21:30]} {[%emt 00:05:22]} Qxe2 {[%clk 00:26:35]} {[%emt
00:00:22]} 21. Qf2 {[%clk 00:21:01]} {[%emt 00:00:59]} Qd3 {[%clk 00:20:04]}
{[%emt 00:07:01]} 22. Bg2 {[%clk 00:15:02]} {[%emt 00:06:29]} Bxg2 {[%clk
00:18:14]} {[%emt 00:02:20]} 23. Qxg2 {[%clk 00:13:46]} {[%emt 00:01:46]} Re8
{[%clk 00:15:57]} {[%emt 00:02:48]} 24. Rf1 {[%clk 00:04:52]} {[%emt 00:09:24]}
Re2 {[%clk 00:14:58]} {[%emt 00:01:29]} 25. Qxb7 {[%clk 00:04:14]} {[%emt
00:01:08]} Qe3+ {[%clk 00:09:42]} {[%emt 00:05:46]} 26. Kh1 {[%clk 00:04:35]}
{[%emt 00:00:09]} Re1 {[%clk 00:04:26]} {[%emt 00:05:47]} 27. Rxe1 {[%clk
00:01:31]} {[%emt 00:03:35]} Qxe1+ {[%clk 00:04:42]} {[%emt 00:00:13]} 28. Kg2
{[%clk 00:01:57]} {[%emt 00:00:04]} Qe2+ {[%clk 00:04:59]} {[%emt 00:00:13]} 29.
Kh3 {[%clk 00:02:02]} {[%emt 00:00:22]} Qh5+ {[%clk 00:05:04]} {[%emt
00:00:27]} 30. Kg2 {[%clk 00:32:28]} {[%emt 00:00:05]} 1/2-1/2